Cogmind - Beta 15 @@@ ROGUE MODE // 2025.06.23 @ 20:03:47 Player: Demo Result: Destroyed by G-67 Veteran with Field Laser Performance ------------- Evolutions (4) 2000 Regions Visited (12) 2400 Robots Destroyed (194) 970 Value Destroyed (6488) 6488 Prototype IDs (217) 4340 Alien Tech Used (0) 0 Bonus (5542) 5542 TOTAL SCORE: 21740 Bonus ------- High Alert Combat Kills 1709 Follower Combat Kills 85 Entered DSFs 500 Met Data Miner 300 Used Data Conduit 3000 Friendly Fire -52 Cogmind --------- Core Integrity 0/850 Matter 182/300 Energy 81/100 System Corruption 0% Temperature Cool (12) Movement Core (50) Location -5/Proximity Caves Parts ------- > --- POWER (1) -------- (None) > --- PROPULSION (4) --- (None) > --- UTILITY (5) ------ Power Amplifier Core Analyzer Hacking Suite > --- WEAPON (5) ------- (None) > --- INVENTORY (5) ---- Heavy Plasma Cannon Molecular Deconstructor Peak State ------------ > --- POWER ------------ Cooled Fission Core > --- PROPULSION ------- Armored Huge Wheel > --- UTILITY ---------- Improved Cooling System Coolant Injector Huge Storage Unit Advanced Targeting Computer Layered Light Armor Plating > --- WEAPON ----------- Force Rifle Force Rifle Force Rifle Heavy Ion Cannon Improved Heavy Machine Gun > --- INVENTORY -------- Cooled Fission Core Cooled Fission Core Armored Huge Wheel Armored Huge Wheel Cryofiber Web Improved Cooling System Advanced Matter Compressor Improved Sensor Array Improved Signal Interpreter Energy Filter Layered Light Armor Plating Layered Light Armor Plating Gatling Laser Gatling Laser Force Rifle Advanced Plasma Rifle Improved EM Pulse Cannon Improved EM Pulse Cannon Advanced Assault Cannon Mini Grenade Launcher Mini Grenade Launcher Mini Grenade Launcher [Rating: 69] Favorites ----------- Power Cooled Fission Core Engine Heavy Ion Engine Power Core Cooled Fission Core Propulsion Armored Wheel Treads Light Treads Leg Enhanced Armored Leg Wheel Armored Wheel Flight Unit VTOL Module Utility Advanced Targeting Computer Device Disposable Heat Sink Storage Humpback Processor Advanced Targeting Computer Hackware Hacking Suite Protection Layered Light Armor Plating Weapon Force Rifle Energy Gun Force Rifle Energy Cannon Improved EM Pulse Cannon Ballistic Gun Enhanced Autogun Ballistic Cannon Advanced Assault Cannon Launcher Mini Grenade Launcher Special Weapon Molecular Deconstructor Build | -11 -10 -10 -8 -7 -7 -7 -7 -6 -6 -6 -6 -5 ------- Run | Yrd Mat Sub Mat Fac Was Fac DSF Fac Low Low Dat Pro Slots Evolved 8 | . . . 4 2 . . . 2 . . . . Power . | . . . . . . . . . . . . . Propulsion 2 | . . . . . . . . 2 . . . . Utility 3 | . . . 1 2 . . . . . . . . Weapon 3 | . . . 3 . . . . . . . . . Parts Attached 126 | 7 10 12 25 44 1 1 2 17 2 1 . 4 Power 11 | . 2 1 1 3 . . 1 2 . . . 1 Engine 7 | . 2 1 1 1 . . . 2 . . . . Core 4 | . . . . 2 . . 1 . . . . 1 Reactor . | . . . . . . . . . . . . . Propulsion 19 | 3 2 3 2 4 . . 1 1 1 . . 2 Treads 2 | 1 . 1 . . . . . . . . . . Leg 1 | . . . . 1 . . . . . . . . Wheel 14 | 2 2 2 2 3 . . 1 1 1 . . . Hover . | . . . . . . . . . . . . . Flight 2 | . . . . . . . . . . . . 2 Utility 38 | 2 3 3 1 19 . 1 . 8 1 . . . Device 18 | 1 . 2 1 9 . 1 . 4 . . . . Storage 7 | 1 2 1 . 2 . . . 1 . . . . Processor 4 | . . . . 3 . . . . 1 . . . Hackware 2 | . . . . . . . . 2 . . . . Protection 7 | . 1 . . 5 . . . 1 . . . . Artifact . | . . . . . . . . . . . . . Weapon 58 | 2 3 5 21 18 1 . . 6 . 1 . 1 Energy Gun 22 | 1 1 . 8 8 1 . . 2 . 1 . . Energy Cannon 13 | . 1 1 2 5 . . . 4 . . . . Ballistic Gun 15 | 1 1 3 7 3 . . . . . . . . Ballistic Cannon 2 | . . 1 . 1 . . . . . . . . Launcher 5 | . . . 4 1 . . . . . . . . Special Weapon 1 | . . . . . . . . . . . . 1 Impact Weapon . | . . . . . . . . . . . . . Slashing Weapon . | . . . . . . . . . . . . . Piercing Weapon . | . . . . . . . . . . . . . Special Melee Weapon . | . . . . . . . . . . . . . Unidentified Prototypes 18 | . . . 7 10 . . . . . . . 1 Parts Lost 33 | . . 3 4 5 8 . . 5 . 2 2 4 Power 2 | . . . . . . . . 2 . . . . Propulsion 10 | . . 1 3 1 1 . . . . 1 1 2 Utility 7 | . . 1 . 1 1 . . 1 . 1 1 1 Weapon 14 | . . 1 1 3 6 . . 2 . . . 1 Highest Loss Streak 8 | . . 1 1 2 8 . . 5 . 1 2 3 To Critical Strikes 2 | . . 1 . . 1 . . . . . . . Average Backups 22 | . 10 17 33 27 18 2 2 2 4 3 4 3 Power 1 | . . 1 1 1 1 . . . . . . . Propulsion 3 | . 5 5 4 2 2 1 1 1 . . . . Utility 6 | . . 1 9 9 6 . . . 2 1 1 . Weapon 10 | . 2 8 16 13 8 . . . 1 2 3 2 Tool/Special . | . . . . . . . . . . . . . Unused Backups 56 | . 1 1 27 19 7 . . . . 1 . . Power 7 | . . . 4 1 2 . . . . . . . Propulsion 13 | . 1 . 6 6 . . . . . . . . Utility 20 | . . . 7 8 4 . . . . 1 . . Weapon 15 | . . 1 10 3 1 . . . . . . . Tool/Special 1 | . . . . 1 . . . . . . . . Average Slot Usage (%) 82 | . 100 93 89 89 63 10 15 51 41 39 31 25 Engine 5 | . 14 14 9 2 . . . 5 . . . . Core 2 | . . . . 4 4 . . . . . . 1 Wheel 13 | . 26 27 17 8 5 4 7 12 13 6 5 . Device 10 | . 7 4 8 14 11 4 7 11 6 6 5 2 Storage 8 | . 14 14 9 7 5 . . 1 6 6 6 3 Processor 3 | . . . . 7 5 . . . . 6 6 6 Hackware 1 | . . . . . . . . 8 13 11 6 6 Protection 2 | . 6 3 . 3 4 . . 1 . . . . Energy Gun 10 | . 14 3 12 13 11 . . 5 . . . . Energy Cannon 6 | . . 9 4 8 . . . 2 . . . . Ballistic Gun 11 | . 14 13 22 9 . . . . . . . . Launcher 3 | . . . 4 5 12 . . . . . . . Peak Build Rating 69 | 8 13 17 40 69 64 12 17 54 37 37 27 37 Average Rating 40 | 5 11 13 31 58 42 10 13 36 33 28 23 14 On Entrance 20 | . 8 11 17 37 67 2 12 14 32 37 24 11 Naked Turns 45 | . . . . . 43 2 . . . . . . Heaviest Build 314 | 9 34 219 228 314 114 2 2 34 3 3 4 6 Greatest Support 56 | 16 24 24 24 28 28 3 3 56 3 3 3 8 Greatest Overweight (x) 11 | 2 3 9 10 11 4 . . . . . 1 1 Average Overweight (x) 3 | . . 3 9 5 1 . . . . . . . Largest Inventory Capacity 35 | 8 15 35 35 35 25 5 5 5 5 5 5 5 Average Capacity 25 | 7 12 23 35 29 19 5 5 5 5 5 5 5 Most Carried 35 | 4 15 29 35 35 25 5 5 5 5 5 5 5 Average Carried 23 | . 10 17 34 29 19 2 4 3 4 4 4 4 Final Capacity 35 | 8 15 35 35 25 5 5 5 5 5 5 5 5 Final Carried 35 | 4 14 28 35 25 5 2 5 5 5 5 5 3 Class Distribution -------------------- 27% | Hauler-Gunner 19% | Bomber 19% | Mutant 12% | Hauler-Bomber 6% | Hacker-Mutant 6% | Gunner 4% | Hauler-Mutant Dominant Class ---------------- Mutant | -10/Materials Mutant | -10/Subcaves Hauler-Gunner | -8/Materials Bomber | -7/Factory Gunner | -7/Waste Gunner | -7/Factory Gunner | -7/DSF Hacker-Mutant | -6/Factory Hacker-Mutant | -6/Lower Caves Hacker-Mutant | -6/Lower Caves Mutant | -6/Data Miner Mutant | -5/Proximity Caves Resources | -11 -10 -10 -8 -7 -7 -7 -7 -6 -6 -6 -6 -5 ----------- Run | Yrd Mat Sub Mat Fac Was Fac DSF Fac Low Low Dat Pro Matter Collected 4841 | 285 109 247 1297 2277 226 . . 203 56 89 . 52 Remotely . | . . . . . . . . . . . . . Salvage Created 7217 | 179 264 216 1786 3861 565 . . 249 . . . 97 Parts 360 | 8 14 10 100 206 3 . . 15 . . . 4 Haulers Intercepted 9 | . 1 . 5 3 . . . . . . . . Recyclers Shooed 7 | 1 . . 2 2 . . . 2 . . . . Parts Field Recycled . | . . . . . . . . . . . . . Retrieved Matter . | . . . . . . . . . . . . . Parts Self-Destructed 24 | . . 9 . . . . . . . 14 . 1 Prevented . | . . . . . . . . . . . . . Kills | -11 -10 -10 -8 -7 -7 -7 -7 -6 -6 -6 -6 -5 ------- Run | Yrd Mat Sub Mat Fac Was Fac DSF Fac Low Low Dat Pro Combat Hostiles Destroyed 119 | . 5 6 32 68 2 . . 4 . . . 2 Guns 44 | . 5 3 14 20 . . . . . . . 2 Cannons 18 | . . 1 1 15 . . . 1 . . . . AOE 53 | . . . 17 31 2 . . 3 . . . . Classes Destroyed 20 | 3 2 1 8 5 1 . . . . . . . Worker 20 | 2 . . 8 6 . . . 4 . . . . Builder 16 | . . . 11 3 . . . 2 . . . . Tunneler 5 | 2 . . 1 2 . . . . . . . . Hauler 9 | . 1 . 5 3 . . . . . . . . Recycler 9 | 1 . . 2 6 . . . . . . . . Mechanic 7 | . . . 1 6 . . . . . . . . Operator 4 | . . . 2 1 . . . 1 . . . . Watcher 5 | . . . 2 3 . . . . . . . . Swarmer 7 | . . . . 4 . . . 1 . . . 2 Grunt 54 | . 5 . 23 23 . . . 3 . . . . Brawler 4 | . . . . 4 . . . . . . . . Duelist 9 | . . . 3 6 . . . . . . . . Protector 4 | . . . 1 3 . . . . . . . . Sentry 11 | . . . 4 7 . . . . . . . . Specialist 5 | . . . . 5 . . . . . . . . Hunter 7 | . . . 1 6 . . . . . . . . Programmer 7 | . . . . 7 . . . . . . . . Heavy 3 | . . . . 3 . . . . . . . . Compactor 2 | . . . . . 2 . . . . . . . Subdweller 6 | . . 6 . . . . . . . . . . Decomposer 2 | . . . . . . . . . . . . 2 Best Kill Streak 16 | 2 5 2 8 16 1 . . 6 . . . 2 Combat Bots Only 12 | . 5 2 6 12 1 . . 4 . . . 2 Max Kills in Single Turn 6 | 1 1 1 3 6 1 . . 5 . . . 1 Gunslinging . | . . . . . . . . . . . . . Exploded 6 | . . . 2 6 1 . . 3 . . . . Melee . | . . . . . . . . . . . . . Uniques/NPCs Destroyed . | . . . . . . . . . . . . . Combat | -11 -10 -10 -8 -7 -7 -7 -7 -6 -6 -6 -6 -5 -------- Run | Yrd Mat Sub Mat Fac Was Fac DSF Fac Low Low Dat Pro Hostile Shots Fired 687 | . 23 56 118 249 8 . 9 117 1 27 14 65 Missed 249 | . 6 21 32 88 . . 4 47 . 12 8 31 Hits 438 | . 17 35 86 161 8 . 5 70 1 15 6 34 Melee 16 | . . . 1 5 8 . 2 . . . . . Projectile 422 | . 17 35 85 156 . . 3 70 1 15 6 34 AOE 4 | . . . . 1 . . 3 . . . . . Critical Strikes 20 | . . 3 2 6 3 . . 5 . . . 1 Part Disruptions 1 | . . . . 1 . . . . . . . . Damage Taken 7983 | . 223 807 1509 2397 577 . 176 1195 19 192 274 614 Core 1885 | . 12 169 278 214 268 . 86 262 19 68 79 430 Absorbed by Shields . | . . . . . . . . . . . . . Ignored by Resistances 40 | . . . . . . . . 40 . . . . Regen/Repaired (Parts) 288 | . . . . 288 . . . . . . . . Core Remaining (%) 48 | 100 . 27 49 . . . 18 . . . . . Volleys Fired 392 | 15 20 35 121 129 17 . . 36 1 . 1 17 Largest 5 | 2 2 2 5 5 5 . . 2 1 . 1 1 Hottest 400 | 60 70 90 235 324 400 . . 145 90 . 80 90 Shots Fired 979 | 30 40 69 315 418 49 . . 39 1 . 1 17 Gun 708 | 30 40 40 252 291 19 . . 30 . . 1 5 Cannon 167 | . . 29 31 86 . . . 9 1 . . 11 Launcher 103 | . . . 32 41 30 . . . . . . . Special 1 | . . . . . . . . . . . . 1 Kinetic 378 | 15 20 44 178 121 . . . . . . . . Thermal 364 | . 2 25 80 211 19 . . 9 1 . 1 16 Explosive 103 | . . . 32 41 30 . . . . . . . Electromagnetic 133 | 15 18 . 25 45 . . . 30 . . . . Robot Hit Streak 26 | 7 9 17 15 26 23 . . 18 . . . 9 Robot Miss Streak 6 | 3 3 2 4 6 2 . . 3 . . 3 3 Penetration Max . | . . . . . . . . . . . . . Secondary Targets 5 | . 1 . 2 2 . . . . . . . . Max Gunslinging Chain 1 | . 1 . 1 1 . . . . . . . . Shots Hit Robots 522 | 17 26 49 154 218 35 . . 17 . . . 6 Core Hits 391 | 6 11 10 118 214 9 . . 15 . . . 8 Critical Kills 3 | . . 2 . 1 . . . . . . . . Critical Parts Destroyed 5 | . . . . 5 . . . . . . . . Critical Strikes 16 | . . 3 2 10 1 . . . . . . . Burn 4 | . . . 1 3 . . . . . . . . Meltdown 2 | . . 2 . . . . . . . . . . Destroy 7 | . . . . 6 1 . . . . . . . Blast 1 | . . 1 . . . . . . . . . . Corrupt 2 | . . . 1 1 . . . . . . . . Melee Attacks . | . . . . . . . . . . . . . Impact . | . . . . . . . . . . . . . Slashing . | . . . . . . . . . . . . . Piercing . | . . . . . . . . . . . . . Sneak Attacks . | . . . . . . . . . . . . . Combat Hostiles . | . . . . . . . . . . . . . Follow-up Attacks . | . . . . . . . . . . . . . Damage Inflicted 22075 | 211 338 833 5936 10514 3026 . . 1005 . . . 212 Guns 7654 | 211 291 504 2117 3812 402 . . 183 . . . 134 Cannons 2337 | . . 329 583 1257 . . . 96 . . . 72 Explosions 12054 | . 47 . 3236 5445 2624 . . 702 . . . . Melee . | . . . . . . . . . . . . . Ramming 30 | . . . . . . . . 24 . . . 6 Kinetic 2846 | 78 78 537 1275 878 . . . . . . . . Thermal 6556 | . 60 296 1400 3394 402 . . 798 . . . 206 Explosive 10802 | . . . 2733 5445 2624 . . . . . . . Electromagnetic 1841 | 133 200 . 528 797 . . . 183 . . . . Impact . | . . . . . . . . . . . . . Slashing . | . . . . . . . . . . . . . Piercing . | . . . . . . . . . . . . . Highest Corruption 12 | . . . . 1 12 12 12 . . . . . Average Corruption 3 | . . . . 1 7 12 12 . . . . . Corruption Purged . | . . . . . . . . . . . . . Corruption Blocked . | . . . . . . . . . . . . . Effects 11 | . . . . 1 7 2 1 . . . . . Message Errors 2 | . . . . . 1 1 . . . . . . Matter Fused 2 | . . . . 1 . 1 . . . . . . Heat Flow Errors 2 | . . . . . 1 . 1 . . . . . Energy Discharges 3 | . . . . . 3 . . . . . . . Weapon Failures 2 | . . . . . 2 . . . . . . . Overload Shots . | . . . . . . . . . . . . . Overflow Damage 311 | . . . 116 105 29 . . 61 . . . . Projectiles 11 | . . . 11 . . . . . . . . . Explosions 300 | . . . 105 105 29 . . 61 . . . . Melee . | . . . . . . . . . . . . . Knockbacks 3 | . . 3 . . . . . . . . . . Impact . | . . . . . . . . . . . . . Kinetic 3 | . . 3 . . . . . . . . . . Secondary . | . . . . . . . . . . . . . Self-Inflicted Damage 485 | . 31 . 103 83 216 . . 49 . . . 3 Shots 21 | . 1 . 4 6 9 . . 1 . . . . Rammed 6 | . . . . . . . . 5 . . . 1 Targets Rammed 6 | . . . . . . . . 5 . . . 1 Kicked . | . . . . . . . . . . . . . Crushed . | . . . . . . . . . . . . . Highest Temperature 271 | 20 138 . 209 271 197 . 221 107 16 . 6 170 Average Temperature 74 | 9 56 . 75 86 86 . 113 35 12 . 4 64 Received Heat Transfer 1983 | . 111 138 720 468 . . . 324 9 36 . 177 Siege Activations . | . . . . . . . . . . . . . Martial Activations . | . . . . . . . . . . . . . Shielding Activations . | . . . . . . . . . . . . . Robots Disrupted . | . . . . . . . . . . . . . Combat Hostiles . | . . . . . . . . . . . . . Robots Corrupted 1 | . . . . 1 . . . . . . . . Combat Hostiles . | . . . . . . . . . . . . . Parts Fried 6 | 1 1 . 2 1 . . . 1 . . . . Impact Corruptions . | . . . . . . . . . . . . . Robots Melted 4 | . . 2 . 2 . . . . . . . . Combat Hostiles 4 | . . 2 . 2 . . . . . . . . Parts Melted 25 | . . 5 1 19 . . . . . . . . Heat Transferred 10762 | . 37 666 2300 6016 668 . . 700 . . . 375 Parts Sabotaged . | . . . . . . . . . . . . . Parts Stolen . | . . . . . . . . . . . . . Parts Stripped . | . . . . . . . . . . . . . Power Chain Reactions 4 | . 1 . 2 . . . . 1 . . . . Alert | -11 -10 -10 -8 -7 -7 -7 -7 -6 -6 -6 -6 -5 ------- Run | Yrd Mat Sub Mat Fac Was Fac DSF Fac Low Low Dat Pro Maximum Alert Level 5 | . . . 3 5 2 1 1 1 . . . . Low Security (%) 31 | 100 100 . 47 11 . . . 83 . . . . Level 1 23 | . . . 16 30 . 100 100 16 . . . . Level 2 16 | . . . 24 13 100 . . . . . . . Level 3 20 | . . . 11 30 . . . . . . . . Level 4 6 | . . . . 12 . . . . . . . . Level 5 1 | . . . . 1 . . . . . . . . High Security . | . . . . . . . . . . . . . Max Security . | . . . . . . . . . . . . . Peak Influence 1627 | 10 111 . 895 1627 578 347 257 318 . . . . Initial 569 | . . . . 401 569 319 242 134 . . . . Average 465 | 1 48 . 293 633 533 326 242 118 . . . . Influence Increases 4600 | 25 198 . 1346 2137 47 28 15 389 30 75 . 310 Destroy 0b10 Robot/C 2180 | . 100 . 620 1340 . . . 80 . . . 40 Destroy 0b10 Robot/NC 400 | 25 5 . 165 170 . . . 35 . . . . Destroy Leader 548 | . 22 . 144 362 . . . 20 . . . . Allied During Kill 25 | . . . . 25 . . . . . . . . Trap Triggered on 0b10 10 | . 10 . . . . . . . . . . . Successful Hack 145 | . 10 . 36 50 . 28 . 21 . . . . Disable Machine 330 | . . . 165 75 . . . 90 . . . . Destroy Structure 437 | . 6 . 216 115 47 . . 53 . . . . Lose Combat Pursuer 525 | . 45 . . . . . 15 90 30 75 . 270 Influence Decreases 4420 | 25 147 51 463 1393 1218 137 105 379 180 173 19 130 Entered New Map 2072 | . . 25 . 482 1058 137 105 123 100 23 19 . Time Decay 1958 | 25 147 26 423 751 80 . . 206 80 130 . 90 Lost Part 280 | . . . 40 50 80 . . 50 . 20 . 40 Lost Ally 110 | . . . . 110 . . . . . . . . Squads Dispatched 39 | . 1 . 5 26 . . 1 6 . . . . Investigation 5 | . 1 . . 4 . . . . . . . . Extermination 6 | . . . . 5 . . . 1 . . . . Reinforcement 16 | . . . 3 7 . . 1 5 . . . . Assault 8 | . . . 2 6 . . . . . . . . Garrison 4 | . . . . 4 . . . . . . . . Intercept . | . . . . . . . . . . . . . Searches Triggered . | . . . . . . . . . . . . . Construction Impeded 2 | . . . 1 . . . . 1 . . . . Haulers Reinforced . | . . . . . . . . . . . . . Active Scanning Responses . | . . . . . . . . . . . . . Cargo Convoy Interrupts 1 | . . . . 1 . . . . . . . . Stealth | -11 -10 -10 -8 -7 -7 -7 -7 -6 -6 -6 -6 -5 --------- Run | Yrd Mat Sub Mat Fac Was Fac DSF Fac Low Low Dat Pro Distress Signals 9 | . 2 . 2 4 . . . 1 . . . . Communications Jammed . | . . . . . . . . . . . . . Distress Signals . | . . . . . . . . . . . . . Times Spotted 227 | . 12 10 49 87 6 . 4 19 1 9 5 25 Peak Tracking Total 14 | . 7 2 5 14 5 . 4 8 2 10 4 10 Tactical Retreats 15 | . 1 . . . . . 1 4 1 2 . 6 Traps | -11 -10 -10 -8 -7 -7 -7 -7 -6 -6 -6 -6 -5 ------- Run | Yrd Mat Sub Mat Fac Was Fac DSF Fac Low Low Dat Pro Traps Triggered 2 | . . 1 . 1 . . . . . . . . Indirectly . | . . . . . . . . . . . . . Trap Hack Attempts . | . . . . . . . . . . . . . Triggered . | . . . . . . . . . . . . . Disarmed . | . . . . . . . . . . . . . Reprogrammed 8 | . 2 . 6 . . . . . . . . . Reused 1 | . 1 . . . . . . . . . . . Traps Extracted . | . . . . . . . . . . . . . Installed . | . . . . . . . . . . . . . Triggered 1 | . 1 . . . . . . . . . . . Machines | -11 -10 -10 -8 -7 -7 -7 -7 -6 -6 -6 -6 -5 ---------- Run | Yrd Mat Sub Mat Fac Was Fac DSF Fac Low Low Dat Pro Machines Disabled 23 | . . . 11 5 . . . 6 1 . . . Max in Single Turn 6 | . . . 1 2 . . . 6 1 . . . Garrison Access 2 | . . . . 2 . . . . . . . . Machines Repaired . | . . . . . . . . . . . . . Machines Dismantled . | . . . . . . . . . . . . . Machines Sabotaged . | . . . . . . . . . . . . . Overloaded Fab Kills . | . . . . . . . . . . . . . Hacking | -11 -10 -10 -8 -7 -7 -7 -7 -6 -6 -6 -6 -5 --------- Run | Yrd Mat Sub Mat Fac Was Fac DSF Fac Low Low Dat Pro Machines Accessed 32 | . 3 . 6 15 . 2 . 2 . . 4 . Terminals 15 | . 3 . 5 4 . 2 . 1 . . . . Fabricators 5 | . . . . 5 . . . . . . . . Repair Stations 2 | . . . . 2 . . . . . . . . Recycling Units 3 | . . . 1 1 . . . 1 . . . . Scanalyzers . | . . . . . . . . . . . . . Garrison Access 3 | . . . . 3 . . . . . . . . Total Hacks 99 | . 8 . 18 36 . 4 . 5 . . 28 . Successful 72 | . 8 . 11 20 . 3 . 2 . . 28 . Failed 27 | . . . 7 16 . 1 . 3 . . . . Catastrophic 5 | . . . 1 4 . . . . . . . . Database Lockouts . | . . . . . . . . . . . . . Manual 47 | . 4 . 14 23 . 1 . 4 1 . . . Terminals 39 | . 8 . 15 10 . 4 . 2 . . . . Fabricators 13 | . . . . 13 . . . . . . . . Repair Stations 3 | . . . . 3 . . . . . . . . Recycling Units 12 | . . . 3 6 . . . 3 . . . . Scanalyzers . | . . . . . . . . . . . . . Garrison Access 4 | . . . . 4 . . . . . . . . Terminal Hacks 42 | . 5 . 3 4 . 2 . . . . 28 . Record 11 | . . . . . . . . . . . 11 . Part Schematic 10 | . . . . 1 . . . . . . 9 . Robot Schematic 5 | . . . . . . . . . . . 5 . Robot Analysis 2 | . 1 . 1 . . . . . . . . . Prototype ID Bank 3 | . . . . . . . . . . . 3 . Open DSF 1 | . . . . . . 1 . . . . . . Terminal Index 1 | . . . . 1 . . . . . . . . Fabricator Index 1 | . . . . 1 . . . . . . . . Locate Traps 4 | . 1 . 1 1 . 1 . . . . . . Reprogram Traps 3 | . 2 . 1 . . . . . . . . . Zone Layout 1 | . 1 . . . . . . . . . . . Fabricator Hacks 2 | . . . . 2 . . . . . . . . Load Schematic 1 | . . . . 1 . . . . . . . . Build 1 | . . . . 1 . . . . . . . . Repair Station Hacks . | . . . . . . . . . . . . . Recycling Unit Hacks 2 | . . . . 1 . . . 1 . . . . Retrieve Components 2 | . . . . 1 . . . 1 . . . . Scanalyzer . | . . . . . . . . . . . . . Garrison Access Hacks 2 | . . . . 2 . . . . . . . . Seal Access 2 | . . . . 2 . . . . . . . . Unauthorized Hacks 24 | . 3 . 8 11 . 1 . 1 . . . . Terminals 14 | . 3 . 7 2 . 1 . 1 . . . . Track 2 | . 1 . 1 . . . . . . . . . Botnet 9 | . 2 . 4 2 . 1 . . . . . . Disrupt 2 | . . . 1 . . . . 1 . . . . Operators 1 | . . . 1 . . . . . . . . . Fabricators 3 | . . . . 3 . . . . . . . . Liberate 3 | . . . . 3 . . . . . . . . Repair Stations 2 | . . . . 2 . . . . . . . . Patch 2 | . . . . 2 . . . . . . . . Recycling Units 5 | . . . 1 4 . . . . . . . . Monitor 1 | . . . . 1 . . . . . . . . Reject 1 | . . . . 1 . . . . . . . . Recyclers 2 | . . . 1 1 . . . . . . . . Mask 1 | . . . . 1 . . . . . . . . Scanalyzers . | . . . . . . . . . . . . . Garrison Access . | . . . . . . . . . . . . . Data Cores Recovered 1 | . . . 1 . . . . . . . . . Used 1 | . . . 1 . . . . . . . . . Hacking Detections 24 | . 3 . 6 11 . 2 . 2 . . . . Full Trace Events 2 | . . . . 2 . . . . . . . . Feedback Events . | . . . . . . . . . . . . . Feedback Blocked . | . . . . . . . . . . . . . Robot Schematics Acquired 5 | . . . . . . . . . . . 5 . Robots Built 1 | . . . . 1 . . . . . . . . Authchips . | . . . . . . . . . . . . . Time 81 | . . . . 81 . . . . . . . . Total Robot Build Rating 1 | . . . . 1 . . . . . . . . Part Schematics Acquired 10 | . . . . 1 . . . . . . 9 . Parts Built . | . . . . . . . . . . . . . Authchips . | . . . . . . . . . . . . . Time . | . . . . . . . . . . . . . Total Part Build Rating . | . . . . . . . . . . . . . Parts Repaired . | . . . . . . . . . . . . . Time . | . . . . . . . . . . . . . Parts Recycled . | . . . . . . . . . . . . . Recycled Matter . | . . . . . . . . . . . . . Retrieved Matter . | . . . . . . . . . . . . . Retrieved Components 12 | . . . . 9 . . . 3 . . . . Parts Scanalyzed . | . . . . . . . . . . . . . Part Schematics Acquired . | . . . . . . . . . . . . . Parts Damaged . | . . . . . . . . . . . . . Bothacking | -11 -10 -10 -8 -7 -7 -7 -7 -6 -6 -6 -6 -5 ------------ Run | Yrd Mat Sub Mat Fac Was Fac DSF Fac Low Low Dat Pro Used RIF Installer . | . . . . . . . . . . . . . Robots Hacked . | . . . . . . . . . . . . . Non-combat . | . . . . . . . . . . . . . Combat . | . . . . . . . . . . . . . Robot Hacks Applied . | . . . . . . . . . . . . . Relay Couplers Released . | . . . . . . . . . . . . . Fabnet Peak Effective % . | . . . . . . . . . . . . . Robots Rewired . | . . . . . . . . . . . . . Allies Hacked . | . . . . . . . . . . . . . Hacks Repelled . | . . . . . . . . . . . . . Allies | -11 -10 -10 -8 -7 -7 -7 -7 -6 -6 -6 -6 -5 -------- Run | Yrd Mat Sub Mat Fac Was Fac DSF Fac Low Low Dat Pro Total Allies 6 | . . . . 6 . . . . . . . . Largest Group 3 | . . . . 3 . . . . . . . . Highest-Rated Group 90 | . . . . 90 . . . . . . . . Highest-Rated Ally 32 | . . . . 32 . . . . . . . . Total Orders 1 | . . . . 1 . . . . . . . . COLLECT 1 | . . . . 1 . . . . . . . . Ally Attacks 12 | . . . . 12 . . . . . . . . Total Damage 447 | . . . . 447 . . . . . . . . Kills 3 | . . . . 3 . . . . . . . . Allies Corrupted . | . . . . . . . . . . . . . Allies Melted . | . . . . . . . . . . . . . Intel | -11 -10 -10 -8 -7 -7 -7 -7 -6 -6 -6 -6 -5 ------- Run | Yrd Mat Sub Mat Fac Was Fac DSF Fac Low Low Dat Pro Active Infowar (turns) 250 | 51 199 . . . . . . . . . . . Terrain 250 | 51 199 . . . . . . . . . . . Robot Analysis Total 153 | . 1 . 1 . . . . . . . 151 . Derelict Logs Recovered 3 | . . 1 . . . . . . 1 1 . . Drone Launches . | . . . . . . . . . . . . . Drone Recoveries . | . . . . . . . . . . . . . Exploration | -11 -10 -10 -8 -7 -7 -7 -7 -6 -6 -6 -6 -5 ------------- Run | Yrd Mat Sub Mat Fac Was Fac DSF Fac Low Low Dat Pro Turns Passed 8794 | 150 371 1010 1784 4018 178 18 36 422 174 268 70 295 Spaces Moved 5214 | 92 265 583 574 1801 132 32 59 315 322 530 108 401 Core 1510 | 13 1 . . . 84 32 59 41 322 530 108 320 Treads 2 | . . 2 . . . . . . . . . . Legs . | . . . . . . . . . . . . . Wheels 3621 | 79 264 581 574 1801 48 . . 274 . . . . Hover . | . . . . . . . . . . . . . Flight 81 | . . . . . . . . . . . . 81 Fastest Speed 32 | 50 90 105 225 145 50 50 50 50 50 50 50 32 Average Speed 132 | 84 99 140 227 185 87 50 50 93 50 50 56 46 Slowest Speed 265 | 150 200 240 235 265 160 50 50 100 50 50 100 100 Overloaded Moves . | . . . . . . . . . . . . . Propulsion Burnouts . | . . . . . . . . . . . . . Robots Hopped 4 | . . . . . . . . . . . . 4 Potential Cave-ins 6 | . . . . . 6 . . . . . . . Cave-ins Triggered . | . . . . . . . . . . . . . Exploration Rate (%) 44 | 6 42 39 52 43 79 2 73 8 55 65 78 38 Regions Visited 12 Branch Regions 5 Pre-discovered Areas 39 | . . 1 . . . . . . 1 1 36 . Known Exits Taken 1 | . . . . . . 1 . . . . . . Unknown Exits Taken 8 | 1 1 1 1 . . . . 1 1 1 1 . Scrap Searched 13 | . . 10 . . . . . . 1 2 . . Spaces Dug 40 | . . . 5 2 20 . . 4 . . . 9 Terrain Destroyed 532 | . 6 . 224 123 99 . . 71 . . . 9 Melee . | . . . . . . . . . . . . . Projectile 40 | . . . 12 13 1 . . 5 . . . 9 AOE 492 | . 6 . 212 110 98 . . 66 . . . . Terrain Rammed . | . . . . . . . . . . . . . Walls Destroyed . | . . . . . . . . . . . . . Machines Disabled . | . . . . . . . . . . . . . Actions | -11 -10 -10 -8 -7 -7 -7 -7 -6 -6 -6 -6 -5 --------- Run | Yrd Mat Sub Mat Fac Was Fac DSF Fac Low Low Dat Pro Total 6404 | 134 340 712 861 2235 157 33 65 399 333 532 115 488 Wait 252 | 13 21 24 13 109 . . . 10 5 . 4 53 Move 5197 | 91 264 582 573 1801 131 31 58 314 321 529 107 395 Hop 2 | . . . . . . . . . . . . 2 Pick Up 158 | 6 15 35 54 41 . . 3 3 1 . . . Fast Attach 57 | 6 1 2 9 16 1 . 1 16 1 1 . 3 Attach 52 | . 2 5 9 15 3 2 1 3 2 . 1 9 Detach 17 | . . . 1 4 . . . 2 1 1 1 7 Swap 102 | 1 7 7 29 52 4 . . 1 . . 1 . Drop 169 | 2 10 22 52 68 1 . 2 9 1 1 . 1 Fire 392 | 15 20 35 121 129 17 . . 36 1 . 1 17 Melee . | . . . . . . . . . . . . . Ram 6 | . . . . . . . . 5 . . . 1 Kick . | . . . . . . . . . . . . . Crush . | . . . . . . . . . . . . . Escape Stasis . | . . . . . . . . . . . . . Rewire . | . . . . . . . . . . . . . Trap . | . . . . . . . . . . . . . Miscellaneous . | . . . . . . . . . . . . . Route ------- -11/Scrapyard -10/Materials (discovered 2 exits: [*Mat] / [*Sub]) -10/Subcaves -8/Materials -7/Factory (discovered 5 exits: *Fac x2 / [*Sto x2] / [*Low]) -7/Waste -7/Factory -7/DSF -6/Factory -6/Lower Caves -6/Lower Caves -6/Data Miner -5/Proximity Caves History --------- Turn | Location | Event 22 | -11/Scrapyard | Discovered new exit (range 14) 151 | -11/Scrapyard | Entered Materials 318 | -10/Materials | Build established: Mutant 509 | -10/Materials | Discovered new exit (range 12) 510 | -10/Materials | Discovered new exit (range 10) 522 | -10/Materials | Entered Subcaves 738 | -10/Subcaves | Learned location of Zion (-7) 921 | -10/Subcaves | Disturbed a concealed Subdweller 945 | -10/Subcaves | Core integrity fell below 50% 1413 | -10/Subcaves | Build established: Hauler-Mutant 1475 | -10/Subcaves | Discovered new exit (range 12) 1510 | -10/Subcaves | Ambushed by Subdwellers from Twisted Machinery 1532 | -10/Subcaves | Entered Materials 1532 | -8/Materials | Evolved 4 slots: Utility x1, Weapon x3 1847 | -8/Materials | Build established: Hauler-Gunner 2732 | -8/Materials | First assault squad dispatched 3175 | -8/Materials | Core integrity fell below 50% 3281 | -8/Materials | Discovered new exit (range 5) 3316 | -8/Materials | Entered Factory 3316 | -7/Factory | Evolved 2 slots: Utility x2 3546 | -7/Factory | Discovered new exit (range 7) 3692 | -7/Factory | Fabricated A-02 Transporter? 3972 | -7/Factory | Identified exit to Factory 4286 | -7/Factory | Garrison activated, responded to threat 4287 | -7/Factory | Build established: Hauler-Bomber 4495 | -7/Factory | Discovered new exit (range 12) 5009 | -7/Factory | Cargo convoy interrupted 5048 | -7/Factory | Destroyed 11 combat bots 5080 | -7/Factory | Discovered exit to Factory (range 15) 5200 | -7/Factory | Garrison activated, responded to threat 5405 | -7/Factory | Build established: Bomber 5716 | -7/Factory | First assault squad dispatched 6247 | -7/Factory | Discovered new exit (range 13) 6690 | -7/Factory | Discovered new exit (range 16) 7028 | -7/Factory | Destroyed 12 combat bots 7138 | -7/Factory | Build established: Gunner 7334 | -7/Factory | Sucked down chute 7334 | -7/Factory | Entered Waste 7349 | -7/Waste | EMP discharged 7389 | -7/Waste | Spotted C-40 Crusher 7403 | -7/Waste | Destroyed C-40 Crusher 7410 | -7/Waste | Spotted C-40 Crusher 7418 | -7/Waste | Spotted C-40 Crusher 7422 | -7/Waste | Spotted C-40 Crusher 7427 | -7/Waste | Spotted C-40 Crusher 7430 | -7/Waste | Crushed by Compactor (0 parts destroyed, 1 dropped) 7430 | -7/Waste | Spotted C-40 Crusher 7449 | -7/Waste | EMP discharged 7449 | -7/Waste | System corruption reached 10% 7453 | -7/Waste | Crushed by Compactor (1 part destroyed, 1 dropped) 7456 | -7/Waste | Crushed by Compactor (0 parts destroyed, 2 dropped) 7457 | -7/Waste | Destroyed C-40 Crusher 7461 | -7/Waste | Crushed by Compactor (1 part destroyed, 1 dropped) 7465 | -7/Waste | Crushed by Compactor (1 part destroyed) 7466 | -7/Waste | Core integrity fell below 50% 7466 | -7/Waste | Crushed by Compactor (1 part destroyed, 1 dropped) 7469 | -7/Waste | Crushed by Compactor (1 part destroyed, 1 dropped) 7487 | -7/Waste | Discovered new exit (range 16) 7500 | -7/Waste | Lost 8 parts (1n1u6w) 7512 | -7/Waste | Entered Factory 7530 | -7/Factory | Identified exit to DSF 7530 | -7/Factory | Entered DSF 7555 | -7/DSF | Additional patrols routed to DSF 7562 | -7/DSF | Discovered exit to Factory (range 16) 7566 | -7/DSF | Entered Factory 7566 | -6/Factory | Evolved 2 slots: Propulsion x2 7739 | -6/Factory | Build established: Mutant 7751 | -6/Factory | Discovered new exit (range 15) 7826 | -6/Factory | Spotted B-75 Beast 7988 | -6/Factory | Entered Lower Caves 7995 | -6/Lower Caves | Lost 5 parts (2p1u2w) 8062 | -6/Lower Caves | Build established: Hacker-Mutant 8083 | -6/Lower Caves | Acquired the password to a Derelict Tinkerer's latest research 8089 | -6/Lower Caves | Found Prototype Special Weapon 8130 | -6/Lower Caves | Learned location of Extension (-5) 8159 | -6/Lower Caves | Discovered new exit (range 6) 8162 | -6/Lower Caves | Entered another Lower Caves area 8202 | -6/Lower Caves | Encountered a Warlord checkpoint 8282 | -6/Lower Caves | Discovered new exit (range 9) 8430 | -6/Lower Caves | Entered Data Miner 8430 | -6/Data Miner | Discovered new exit (range 6) 8440 | -6/Data Miner | Met Data Miner 8452 | -6/Data Miner | Learned location of Section 7 (-2) 8452 | -6/Data Miner | Acquired the access code to Warlord's prototype stash 8459 | -6/Data Miner | Received God Mode back door access code from Data Miner 8476 | -6/Data Miner | Interfaced with the Data Conduit 8500 | -6/Data Miner | Core integrity fell below 50% 8500 | -6/Data Miner | Entered Proximity Caves 8681 | -5/Proximity Caves | Build established: Mutant 8688 | -5/Proximity Caves | Core integrity fell below 20% 8700 | -5/Proximity Caves | Spotter reported a threat 8739 | -5/Proximity Caves | Identified Molecular Deconstructor 8795 | -5/Proximity Caves | Destroyed by G-67 Veteran with Field Laser Last Messages --------------- 08665_ Med. Matter Pod destroyed. 08700_ ALERT: Unidentified potential threat approaching Complex 0b10. 08700_ S-27 Virus destroyed. 08706_ Acquired VTOL Module. 08710_ Autogun fries itself beyond repair. 08710_ Acquired 22 matter. 08710_ Acquired Lgt. Nuclear Core. 08739_ Identified Molecular Deconstructor. 08740_ Entropy package melds with Wall. 08741_ Wall disintegrates. 08741_ Wall destabilizing. 08752_ Wall disintegrates. 08752_ Concrete destabilizing. 08754_ Concrete disintegrates. 08755_ Wall disintegrates. 08779_ VTOL Module destroyed. 08779_ Dropped Lgt. Nuclear Core. 08785_ Gatling Laser destroyed. 08788_ Slammed into G-50 Soldier. Map ----- +----------------------------------------------------+ | ?????????????????????????????????????????????????? | | ?????????????????????????????????????????????????? | | ?????????????????????????????????????????????????? | | ?????????????????????????????????????????????????? | | ?????????????????????????????????????????????????? | | ?????????????????????????????????????????????????? | | ?????????????????????????????????????????????????? | | ?????????????????????????????????????????????????? | | ?????????????????????????????????????????????????? | | ?????????????????????????????????????????????????? | | ?????????????????????????????????????????????????? | | ???????????#####?????????????????????????????????? | | ?#####????## ######????????????????????????????? | | ## ###### ##???????????????????????????? | | # ###?????????????????????????? | | ##????????????????????????? | | ##???????????????????????? | | ## ##??????????????????????? | | ### ### ##?????????????????????? | | #?## #?# ##????????????????????? | | #??# #?# ##???????????????????? | | #??## #?# #???????????????????? | | #???# ##?## ##g #???????????????????? | | #???### ##???## #### ##???????????????????? | | ??????# #?###?####?##g #????????????????????? | | ?????## #### ##?????# @ #????????????????????? | | ???### #?# ##????# g## #????????????????????? | | ???# #?# ##???# ## #????????????????????? | | ???# ##?##% #???# ## #????????????????????? | | ???# ##??## #???# ## #????????????????????? | | ???## ##### #???# ## #????????????????????? | | ????# ## ##??## #????????????????????? | | ????## ##??## ##???????????????????? | | ?????# ###??## ##??????????????????? | | ?????# ##????# #??????????????????? | | ????# ##?????# ### ##??????????????????? | | ???# ##??????## #?## ##??????????????????? | | ?? ##????????# ##??## #??????????????????? | | ###?????????###????# "#??????????????????? | | #### ##??????????????????## # #?????????????????? | | ???# #?????????????????????# ## #????????????????? | | ??? ??????????????????????# #?# #???????????????? | | ?? ??????????????????????###??# #??????????????? | | ?####????????????????????????????# #?????????????? | | ??????????????????????????????????##?????????????? | | ?????????????????????????????????????????????????? | | ?????????????????????????????????????????????????? | | ?????????????????????????????????????????????????? | | ?????????????????????????????????????????????????? | | ?????????????????????????????????????????????????? | +----------------------------------------------------+ Best States ------------- Heat Dissipation 75 Coolant Potential 65 Energy Generation 21 Energy Capacity 350 Matter Stores 300 Matter Capacity 400 Sight Range 16 Terrain Scan Range 16 Terrain Scan Density 10 Power Amplification 20 Base Temperature (-) 100 Armor Coverage 150 Resistance: TH 10 Evasion (%) 63 Targeting Accuracy 8 Core Analysis 6 Recoil Reduction 4 Offensive Hacking 22 Item Schematics ----------------- Plasma Cutter | -7/Factory | Hacked Combat Drone Bay | -6/Data Miner | Free Lgt. Regenerative Plating | -6/Data Miner | Free Imp. Matter Compressor | -6/Data Miner | Free Enh. Armored Leg | -6/Data Miner | Free Hvy. Siege Treads | -6/Data Miner | Free Thunder Hammer | -6/Data Miner | Free Matter Neutralizer | -6/Data Miner | Free Enh. Force Lance | -6/Data Miner | Free Imp. Remote Force Field | -6/Data Miner | Free Robot Schematics ------------------ S-27 Virus | -6/Data Miner | Free G-50 Soldier | -6/Data Miner | Free M-22 Extractor | -6/Data Miner | Free A-15 Conveyor | -6/Data Miner | Free M-30 Cleanser | -6/Data Miner | Free Fabricated ------------ A-02 Transporter | x1 | -7/Factory | Preloaded Repaired ---------- Nothing Alien Tech Used ----------------- None Achievements -------------- None Challenges ------------ None Game ------ Seed MagneticStealthCycler Manual? 0 Play Time 01:16:54 Cumulative 297.9 hours Start 2025.06.23 @ 18:46:32 End 2025.06.23 @ 20:03:47 Sessions 2 Manual Loads 0 Difficulty Rogue Special Mode None Game No. 264 Rogue 264 Adventurer 0 Explorer 0 Win Type - Total 2 Types 1/1/0/0/0/0/0/0/0/0 Lore% 77 Gallery% 80 Achievement% 72 Wizard Run 0 Options --------- Layout 1 ASCII 0 Keyboard 0 Movement Numpad Keybinds 0 Fullscreen 1 Font 24/Smallcaps Map View 50x35 Zoom Use 0% Tactical HUD 1 Map Filters NONE Filters NONE Steam 1 RUN: 7038fd57-dea5-41e5-9100-265d4b11dda8